fUSD/lending_fUSD_20250923
["ID","MTS","AMOUNT","RATE_DAILY","PERIOD"]
[387185471,1758621040635,-150.0,0.00025244,2]
[387185472,1758621040645,-150.0,0.00025244,2]
[387185473,1758621040654,-150.0,0.00025244,2]
[387185474,1758621040663,-150.0,0.00025244,2]
[387185475,1758621040673,-150.0,0.00025244,2]
[387185477,1758621040682,-150.0,0.00025244,2]
[387185478,1758621040691,-150.0,0.00025244,2]
[387185480,1758621040702,-150.0,0.00025244,2]
[387185482,1758621040711,-150.0,0.00025244,2]
[387185484,1758621040722,-150.0,0.00025244,2]
[387185486,1758621040731,-150.0,0.00025244,2]
[387185487,1758621040742,-150.0,0.00025244,2]
[387185488,1758621040751,-150.0,0.00025244,2]
[387185489,1758621040761,-150.0,0.00025244,2]
[387185490,1758621040771,-1000.0,0.00025281,2]
[387185491,1758621040780,-600.0,0.00025281,2]
[387185492,1758621040790,-1425.0,0.00025292,2]
[387185493,1758621040799,-1000.0,0.00025298,2]
[387185494,1758621040808,-1000.0,0.00025313,2]
[387185495,1758621040817,-1000.0,0.00025313,2]
[387185496,1758621040827,-1000.0,0.00025313,2]
[387185497,1758621040837,-1000.0,0.00025313,2]
[387185498,1758621040846,-1000.0,0.00025313,2]
[387185499,1758621040856,-1000.0,0.00025313,2]
[387185500,1758621040865,-307.8635,0.00025313,2]
[387185501,1758621040875,-5316.87793203,0.0002533,2]
[387185502,1758621040884,-152.28513587,0.0002533,2]
[387185503,1758621040894,-313.9393,0.0002533,2]
[387185504,1758621040903,-577.342,0.00025334,2]
[387185505,1758621040913,-197.95821899,0.00025335,2]
[387185506,1758621040923,-683.30288094,0.0002534,2]
[387185507,1758621040933,-1000.0,0.00025342,2]
[387185508,1758621040948,-150.0,0.00025405,2]
[387185509,1758621040958,-260.51367898,0.00025406,2]
[387185510,1758621040967,-332.02723792,0.00025408,2]
[387185511,1758621040977,-403.54079686,0.0002541,2]
[387185512,1758621040986,-475.05435579,0.00025412,2]
[387185513,1758621040996,-546.56791473,0.00025413,2]
[387185514,1758621041006,-618.08147367,0.00025415,2]
[387185515,1758621041017,-689.5950326,0.00025417,2]
[387185516,1758621041026,-761.10859154,0.00025418,2]
[387185517,1758621041036,-832.62215048,0.0002542,2]
[387185518,1758621041045,-282.11647168,0.00025424,2]
[387185519,1758621041061,-764.0,0.00025424,2]
[387185520,1758621041073,-67849.83123592,0.00025424,2]
[387185521,1758621041083,-38771.31781958,0.0002543,2]
[387185522,1758621041172,-167916.52530342,0.0002543,2]
[387185523,1758621041182,-133372.252956,0.0002543,2]
[387185524,1758621041192,-15236.13473068,0.00025434,2]
[387185525,1758621041204,-6481.270156,0.00025434,2]
[387185555,1758621044488,-0.02240622,0.00025434,2]
[387185556,1758621045211,-476.83643344,0.00025434,2]
[387185558,1758621045915,-150.24002395,0.000249,2]
[387185559,1758621045927,-14959.41894786,0.000249,2]
[387185560,1758621045976,-3766.59843688,0.000249,2]
[387185561,1758621045987,-150.0,0.00025244,2]
[387185562,1758621045996,-500.0,0.00025244,2]
[387185564,1758621046005,-8317.24261366,0.00025434,2]
[387185566,1758621046015,-1174.5888616,0.00025434,2]
[387185567,1758621046024,-3024.7415722,0.00025434,2]
[387185568,1758621046034,-47658.414749,0.00025434,2]
[387185569,1758621046043,-18783.2025232,0.00025434,2]
[387185570,1758621046052,-32835.519063,0.00025434,2]
[387185571,1758621046062,-157.86,0.00025435,2]
[387185572,1758621046071,-199.9925,0.00025439,2]
[387185573,1758621046081,-695.0,0.0002544,2]
[387185574,1758621046090,-375136.99153859,0.0002544,2]
[387185575,1758621046099,-1198.1101454,0.0002544,2]
[387185576,1758621046109,-176.0,0.0002544,2]
[387185577,1758621046117,-817.0,0.0002544,3]
[387185578,1758621046127,-817.0,0.0002544,3]
[387185579,1758621046136,-817.0,0.0002544,3]
[387185580,1758621046145,-817.0,0.0002544,3]
[387185581,1758621046154,-817.0,0.0002544,3]
[387185582,1758621046163,-166.37060887,0.0002544,3]
[387185583,1758621046173,-5000.0,0.0002544,2]
[387185584,1758621046182,-1935.8164,0.0002544,2]
[387185585,1758621046191,-151.0,0.0002544,7]
[387185586,1758621046200,-162.7488,0.0002544,7]
[387185587,1758621046210,-183.932224,0.0002544,7]
[387185588,1758621046219,-183.932224,0.0002544,7]
[387185589,1758621046229,-159.763155,0.0002544,7]
[387185590,1758621046238,-151.0,0.0002544,7]
[387185591,1758621046247,-183.932224,0.0002544,7]
[387185592,1758621046257,-151.0,0.0002544,7]
[387185593,1758621046266,-151.0,0.0002544,7]
[387185594,1758621046275,-183.932224,0.0002544,7]
[387185595,1758621046284,-158.211672,0.0002544,7]
[387185596,1758621046293,-151.0,0.0002544,7]
[387185597,1758621046302,-152.0,0.0002544,3]
[387185598,1758621046311,-152.0,0.0002544,3]
[387185599,1758621046321,-152.0,0.0002544,3]
[387185600,1758621046330,-165.70266,0.0002544,7]
[387185601,1758621046339,-152.0,0.0002544,3]
[387185602,1758621046348,-152.0,0.0002544,3]
[387185603,1758621046357,-201.08304048,0.0002544,3]
[387185604,1758621046366,-151.98,0.00025463,2]
[387185605,1758621046376,-377.0,0.00025468,2]
[387185606,1758621046384,-400.0,0.00025473,2]
[387185607,1758621046394,-500.0,0.00025473,2]
[387185608,1758621046402,-500.0,0.00025473,2]
[387185609,1758621046412,-500.0,0.00025473,2]
[387185610,1758621046420,-500.0,0.00025473,2]
[387185611,1758621046429,-502.15752095,0.00025473,2]
[387185612,1758621046438,-500.0,0.00025473,2]
[387185613,1758621046447,-500.0,0.00025473,2]
[387185614,1758621046457,-505.70694091,0.00025473,2]
[387185615,1758621046467,-419.66,0.00025474,2]
[387185616,1758621046477,-240.54874685,0.00025479,2]
[387185617,1758621046486,-500.0,0.00025518,2]
[387185618,1758621046496,-150.0,0.00025518,2]
[387185619,1758621046505,-150.0,0.00025518,2]
[387185620,1758621046514,-150.0,0.00025518,2]
[387185622,1758621046523,-500.0,0.00025518,2]
[387185624,1758621046532,-500.0,0.00025518,2]
[387185626,1758621046541,-150.0,0.00025518,2]
[387185628,1758621046551,-910.0,0.00025518,2]
[387185630,1758621046560,-424.0,0.00025518,2]
[387185632,1758621046570,-150.0,0.00025518,2]
[387185634,1758621046579,-150.0,0.00025518,2]
[387185636,1758621046588,-150.0,0.00025518,2]
[387185638,1758621046597,-150.0,0.00025518,2]
[387185640,1758621046607,-150.0,0.00025518,2]
[387185642,1758621046616,-250.0,0.00025518,2]
[387185665,1758621046792,-150.0,0.00025518,2]
[387185668,1758621046843,-150.0,0.00025518,2]
[387185670,1758621046853,-500.0,0.00025518,2]
[387185672,1758621046863,-472.0,0.00025525,2]
[387185674,1758621046872,-1000.0,0.0002558,2]
[387185676,1758621046882,-377.0,0.00025581,2]
[387185678,1758621046891,-240.54874685,0.00025589,2]
[387185679,1758621046901,-377.0,0.00025598,2]
[387185681,1758621046910,-189.0,0.000256,2]
[387185683,1758621046919,-200.0,0.0002561,7]
[387185685,1758621046928,-168.0,0.00025649,2]
[387185687,1758621046937,-240.54874685,0.00025671,2]
[387185688,1758621046950,-185.77977695,0.00025674,2]
[387185689,1758621046961,-34447.9738538,0.00025684,2]
[387185690,1758621046970,-26674.4505912,0.00025684,2]
[387185691,1758621046979,-1814.525,0.00025736,2]
[387185692,1758621046989,-18876.25740849,0.00025745,4]
[387185693,1758621046999,-419.78201405,0.00025748,2]
[387185694,1758621047008,-12379.71693225,0.00025748,2]
[387185695,1758621047017,-240.54874685,0.00025781,2]
[387185697,1758621047026,-26674.4505912,0.00025782,2]
[387185699,1758621047035,-377.0,0.00025788,2]
[387185701,1758621047045,-426.0,0.00025792,2]
[387185703,1758621047053,-200.0,0.00025792,2]
[387185705,1758621047063,-150.0,0.00025792,2]
[387185707,1758621047071,-500.0,0.00025792,2]
[387185708,1758621047081,-245.0,0.00025792,2]
[387185710,1758621047090,-200.0,0.00025792,2]
[387185712,1758621047100,-910.0,0.00025792,2]
[387185715,1758621047109,-424.0,0.00025792,2]
[387185717,1758621047118,-150.0,0.00025792,2]
[387185719,1758621047127,-200.0,0.00025792,2]
[387185720,1758621047136,-150.0,0.00025792,2]
[387185722,1758621047145,-200.0,0.00025792,2]
[387185724,1758621047154,-150.0,0.00025792,2]
[387185726,1758621047163,-150.0,0.00025792,2]
[387185728,1758621047172,-500.0,0.00025792,2]
[387185730,1758621047182,-1000.0,0.000258,2]
[387185732,1758621047191,-377.0,0.000258,2]
[387185734,1758621047200,-382.95,0.00025809,2]
[387185736,1758621047211,-600.0,0.00025829,2]
[387185738,1758621047221,-34447.9738538,0.00025833,2]
[387185740,1758621047230,-5316.87793201,0.00025853,2]
[387185742,1758621047239,-152.0,0.00025861,6]
[387185744,1758621047248,-161.49884539,0.0002589,2]
[387185746,1758621047257,-162.0,0.0002589,7]
[387185748,1758621047266,-240.54874685,0.0002589,2]
[387185750,1758621047275,-151.0,0.0002589,7]
[387185752,1758621047284,-151.0,0.0002589,7]
[387185754,1758621047293,-1000.0,0.00025899,2]
[387185756,1758621047302,-200.0,0.0002591,7]
[387185758,1758621047312,-449.21320913,0.0002591,2]
[387185760,1758621047321,-377.0,0.00025916,2]
[387185762,1758621047330,-377.0,0.00025957,2]
[387185764,1758621047339,-4327.63115642,0.0002596,2]
[387185767,1758621047352,-30120.34269738,0.0002596,2]
[387185769,1758621047361,-26674.4505912,0.0002596,2]
[387185771,1758621047371,-151.98,0.0002596,2]
[387185773,1758621047380,-26674.4505912,0.00025963,2]
[387185775,1758621047389,-151.0,0.0002597,7]
[387185777,1758621047398,-151.0,0.0002597,7]
[387185779,1758621047407,-151.0,0.0002597,7]
[387185781,1758621047417,-151.0,0.0002597,7]
[387185783,1758621047426,-151.0,0.0002597,7]
[387185785,1758621047435,-151.0,0.0002597,7]
[387185787,1758621047444,-151.0,0.0002597,7]
[387185789,1758621047453,-151.0,0.0002597,7]
[387185791,1758621047464,-151.0,0.0002597,7]
[387185793,1758621047473,-154.490133,0.0002597,7]
[387185795,1758621047483,-151.0,0.0002597,7]
[387185797,1758621047493,-156.675071,0.0002597,7]
[387185799,1758621047502,-151.0,0.0002597,7]
[387185800,1758621047511,-151.0,0.0002597,7]
[387185803,1758621047521,-340.519285,0.0002597,7]
[387185805,1758621047530,-340.519285,0.0002597,7]
[387185807,1758621047539,-340.519285,0.0002597,7]
[387185809,1758621047548,-340.519285,0.0002597,7]
[387185811,1758621047557,-154.890329,0.0002597,7]
[387185813,1758621047566,-183.932224,0.0002597,7]
[387185815,1758621047575,-183.932224,0.0002597,7]
[387185817,1758621047584,-151.0,0.0002597,7]
[387185819,1758621047593,-183.932224,0.0002597,7]
[387185821,1758621047602,-151.0,0.0002597,7]
[387185823,1758621047612,-185.964976,0.0002597,7]
[387185825,1758621047621,-183.932224,0.0002597,7]
[387185827,1758621047630,-151.0,0.0002597,7]
[387185829,1758621047639,-68895.9477076,0.0002597,2]
[387185831,1758621047649,-53348.9011824,0.0002597,2]
[387185832,1758621047658,-151.98,0.0002597,2]
[387185833,1758621047667,-500.0,0.00025973,2]
[387185834,1758621047676,-500.6639251,0.00025973,2]
[387185835,1758621047685,-160.07135734,0.00025973,2]
[387185836,1758621047694,-500.0,0.00025973,2]
[387185837,1758621047704,-500.25349136,0.00025973,2]
[387185838,1758621047715,-500.0,0.00025973,2]
[387185839,1758621047725,-500.0,0.00025973,2]
[387185840,1758621047733,-328.33344359,0.00025973,2]
[387185841,1758621047743,-500.0,0.00025973,2]
[387185842,1758621047752,-500.0,0.00025973,2]
[387185843,1758621047762,-500.0,0.00025973,2]
[387185844,1758621047771,-500.0,0.00025973,2]
[387185845,1758621047780,-500.0,0.00025973,2]
[387185846,1758621047790,-500.0,0.00025973,2]
[387185847,1758621047799,-500.0,0.00025973,2]
[387185848,1758621047809,-500.92325536,0.00025973,2]
[387185849,1758621047818,-500.0,0.00025973,2]
[387185850,1758621047828,-500.0,0.00025973,2]
[387185851,1758621047837,-500.0,0.00025973,2]
[387185852,1758621047847,-534.07223647,0.00025973,2]
[387185853,1758621047856,-500.0,0.00025973,2]
[387185854,1758621047865,-514.67079359,0.00025973,2]
[387185855,1758621047874,-500.47935389,0.00025973,2]
[387185856,1758621047884,-200.0,0.00025973,2]
[387185857,1758621047894,-500.0,0.00025973,2]
[387185858,1758621047904,-500.0,0.00025973,2]
[387185859,1758621047913,-500.0,0.00025973,2]
[387185860,1758621047922,-206.83664962,0.00025973,2]
[387185861,1758621047931,-500.0,0.00025973,2]
[387185862,1758621047942,-501.98399225,0.00025973,2]
[387185863,1758621047951,-500.0,0.00025973,2]
[387185864,1758621047961,-501.74024584,0.00025973,2]
[387185865,1758621047971,-500.0,0.00025973,2]
[387185866,1758621047981,-500.0,0.00025973,2]
[387185867,1758621047991,-150.0,0.00025973,2]
[387185868,1758621048000,-240.54874685,0.00025973,2]
[387185869,1758621048010,-32171.0,0.00025973,2]
[387185870,1758621048021,-152.092061,0.00025973,7]
[387185871,1758621048030,-1007.515395,0.00025973,7]
[387185872,1758621048039,-1007.515395,0.00025973,7]
[387185873,1758621048054,-151.0,0.00025973,7]
[387185874,1758621048074,-162.593331,0.00025973,7]
[387185875,1758621048090,-1007.515395,0.00025973,7]
[387185876,1758621048110,-151.0,0.00025973,7]
[387185877,1758621048131,-1007.515395,0.00025973,7]
[387185878,1758621048146,-151.0,0.00025973,7]
[387185879,1758621048163,-151.0,0.00025973,7]
[387185880,1758621048180,-151.0,0.00025973,7]
[387185881,1758621048198,-151.0,0.00025973,7]
[387185882,1758621048216,-150.0,0.00025974,2]
[387185883,1758621048234,-258.35577353,0.00025976,2]
[387185884,1758621048252,-329.27696626,0.00025978,2]
[387185885,1758621048269,-400.198159,0.00025979,2]
[387185886,1758621048287,-151.0,0.0002598,7]
[387185887,1758621048303,-155.245116,0.0002598,7]
[387185888,1758621048316,-155.164766,0.0002598,7]
[387185889,1758621048335,-151.0,0.0002598,7]
[387185890,1758621048347,-151.0,0.0002598,7]
[387185891,1758621048365,-151.0,0.0002598,7]
[387185892,1758621048380,-154.25208,0.0002598,7]
[387185893,1758621048393,-151.0,0.0002598,7]
[387185894,1758621048407,-151.0,0.0002598,7]
[387185895,1758621048428,-155.8039,0.0002598,7]
[387185896,1758621048444,-151.0,0.0002598,7]
[387185897,1758621048458,-151.0,0.0002598,7]
[387185898,1758621048474,-151.0,0.0002598,7]
[387185899,1758621048489,-153.731096,0.0002598,7]
[387185900,1758621048504,-151.0,0.0002598,7]
[387185901,1758621048518,-151.0,0.0002598,7]
[387185902,1758621048532,-151.0,0.0002598,7]
[387185903,1758621048546,-151.0,0.0002598,7]
[387185904,1758621048560,-151.0,0.0002598,7]
[387185905,1758621048573,-151.0,0.0002598,7]
[387185906,1758621048587,-151.0,0.0002598,7]
[387185907,1758621048601,-151.0,0.0002598,7]
[387185908,1758621048616,-151.0,0.0002598,7]
[387185909,1758621048631,-151.0,0.0002598,7]
[387185910,1758621048645,-160.0,0.0002598,14]
[387185911,1758621048660,-160.0,0.0002598,14]
[387185912,1758621048674,-160.0,0.0002598,14]
[387185913,1758621048687,-160.0,0.0002598,14]
[387185914,1758621048702,-160.0,0.0002598,14]
[387185915,1758621048717,-160.0,0.0002598,14]
[387185916,1758621048729,-160.0,0.0002598,14]
[387185917,1758621048743,-160.0,0.0002598,14]
[387185918,1758621048756,-160.0,0.0002598,14]
[387185919,1758621048770,-160.0,0.0002598,14]
[387185920,1758621048784,-160.0,0.0002598,14]
[387185921,1758621048798,-160.0,0.0002598,14]
[387185922,1758621048812,-245.662524,0.0002598,14]
[387185923,1758621048826,-151.0,0.0002598,7]
[387185924,1758621048841,-151.0,0.0002598,7]
[387185925,1758621048854,-242.434307,0.0002598,7]
[387185926,1758621048869,-151.0,0.0002598,7]
[387185927,1758621048882,-151.0,0.0002598,7]
[387185928,1758621048896,-151.0,0.0002598,7]
[387185929,1758621048910,-103343.921561,0.0002598,2]
[387185930,1758621048925,-106697.802365,0.0002598,2]
[387185931,1758621048943,-471.11935173,0.00025981,2]
[387185932,1758621048959,-542.04054446,0.00025983,2]
[387185933,1758621048974,-612.9617372,0.00025985,2]
[387185934,1758621048989,-151.0,0.00025985,7]
[387185935,1758621049003,-151.0,0.00025985,7]
[387185936,1758621049019,-151.0,0.00025985,7]
[387185937,1758621049033,-151.0,0.00025985,7]
[387185938,1758621049048,-151.0,0.00025985,7]
[387185939,1758621049062,-234.636022,0.00025985,7]
[387185940,1758621049076,-151.0,0.00025985,7]
[387185941,1758621049091,-151.0,0.00025985,7]
[387185942,1758621049105,-151.0,0.00025985,7]
[387185943,1758621049121,-255.400501,0.00025985,7]
[387185944,1758621049136,-340.519285,0.00025985,7]
[387185945,1758621049151,-340.519285,0.00025985,7]
[387185946,1758621049166,-340.519285,0.00025985,7]
[387185947,1758621049181,-340.519285,0.00025985,7]
[387185948,1758621049197,-183.932224,0.00025985,7]
[387185949,1758621049214,-183.932224,0.00025985,7]
[387185950,1758621049230,-183.932224,0.00025985,7]
[387185951,1758621049246,-151.0,0.00025985,7]
[387185952,1758621049260,-183.932224,0.00025985,7]
[387185953,1758621049274,-683.88292993,0.00025986,2]
[387185954,1758621049288,-754.80412267,0.00025988,2]
[387185955,1758621049302,-300.0,0.00025989,10]
[387185956,1758621049316,-589.79936961,0.0002599,2]
[387185957,1758621049329,-825.7253154,0.0002599,2]
[387185958,1758621049343,-151.0,0.0002599,7]
[387185959,1758621049356,-151.0,0.0002599,7]
[387185960,1758621049370,-274.383854,0.0002599,7]
[387185961,1758621049384,-182.281596,0.0002599,7]
[387185962,1758621049398,-156.079689,0.0002599,7]
[387185963,1758621049411,-151.0,0.0002599,7]
[387185964,1758621049424,-151.0,0.0002599,7]
[387185965,1758621049438,-300.145789,0.0002599,7]
[387185966,1758621049451,-151.0,0.0002599,7]
[387185967,1758621049464,-151.0,0.0002599,7]
[387185968,1758621049478,-151.0,0.0002599,7]
[387185969,1758621049492,-151.0,0.0002599,7]
[387185970,1758621049508,-151.0,0.0002599,7]
[387185971,1758621049522,-151.0,0.0002599,7]
[387185972,1758621049535,-151.0,0.0002599,7]
[387185973,1758621049549,-68895.9477076,0.0002599,2]
[387185974,1758621049563,-151.0,0.0002599,7]
[387185975,1758621049577,-160046.703547,0.0002599,2]
[387185976,1758621049590,-151.0,0.0002599,7]
[387185977,1758621049605,-1007.515395,0.0002599,7]
[387185978,1758621049618,-1007.515395,0.0002599,7]
[387185979,1758621049631,-151.0,0.0002599,7]
[387185980,1758621049645,-1007.515395,0.0002599,7]
[387185981,1758621049658,-151.0,0.0002599,7]
[387185982,1758621049672,-1007.515395,0.0002599,7]
[387185983,1758621049687,-151.0,0.0002599,7]
[387185984,1758621049701,-151.0,0.0002599,7]
[387185985,1758621049711,-151.0,0.0002599,7]
[387185986,1758621049721,-151.98,0.0002599,2]
[387185987,1758621049730,-1000.0,0.00025999,2]
[387185988,1758621049740,-212.54915049,0.00026,2]
[387185989,1758621049749,-167.59157223,0.00026,10]
[387185990,1758621049758,-2000.0,0.00026,4]
[387185991,1758621049768,-250.0,0.00026,7]
[387185992,1758621049777,-2015.47463111,0.00026,2]
[387185993,1758621049786,-39494.98642881,0.00026,3]
[387185994,1758621049796,-2581.61,0.00026,7]
[387185995,1758621049806,-3227.25,0.00026,7]
[387185996,1758621049816,-3908.38,0.00026,7]
[387185997,1758621049826,-2747.52,0.00026,7]
[387185998,1758621049836,-1821.9,0.00026,7]
[387185999,1758621049845,-5343.87,0.00026,7]
[387186000,1758621049855,-800.21119999,0.00026,2]
[387186001,1758621049864,-280812.85780198,0.00026,2]
[387186002,1758621049873,-516.64379166,0.00026,7]
[387186003,1758621049883,-153.058207,0.00026,7]
[387186004,1758621050278,-225.948827,0.00026,7]
[387186005,1758621050303,-151.0,0.00026,7]
[387186006,1758621050329,-151.0,0.00026,7]
[387186007,1758621050357,-151.0,0.00026,7]
[387186008,1758621050367,-151.0,0.00026,7]
[387186009,1758621050377,-151.0,0.00026,7]
[387186010,1758621050387,-151.0,0.00026,7]
[387186011,1758621050397,-151.0,0.00026,7]
[387186012,1758621050406,-151.0,0.00026,7]
[387186013,1758621050416,-151.0,0.00026,7]
[387186014,1758621050425,-151.0,0.00026,7]
[387186015,1758621050435,-151.0,0.00026,7]
[387186016,1758621050444,-151.0,0.00026,7]
[387186017,1758621050453,-1015.36,0.00026,2]
[387186018,1758621050466,-151.0,0.00026,7]
[387186019,1758621050475,-151.0,0.00026,7]
[387186020,1758621050484,-151.0,0.00026,7]
[387186021,1758621050493,-151.0,0.00026,7]
[387186022,1758621050502,-159.007811,0.00026,7]
[387186023,1758621050511,-151.0,0.00026,7]
[387186024,1758621050521,-263.940716,0.00026,7]
[387186025,1758621050530,-151.0,0.00026,7]
[387186026,1758621050539,-151.0,0.00026,7]
[387186027,1758621050548,-151.0,0.00026,7]
[387186028,1758621050557,-151.0,0.00026,7]
[387186029,1758621050566,-151.0,0.00026,7]
[387186030,1758621050575,-151.0,0.00026,7]
[387186031,1758621050584,-151.0,0.00026,7]
[387186032,1758621050593,-516.64379166,0.00026,3]
[387186033,1758621050603,-1007.515395,0.00026,7]
[387186034,1758621050613,-1007.515395,0.00026,7]
[387186035,1758621050622,-151.0,0.00026,7]
[387186036,1758621050631,-1007.515395,0.00026,7]
[387186037,1758621050640,-151.938,0.00026,7]
[387186038,1758621050650,-1007.515395,0.00026,7]
[387186039,1758621050659,-151.0,0.00026,7]
[387186040,1758621050669,-289.179287,0.00026,7]
[387186041,1758621050679,-516.64379166,0.00026,7]
[387186042,1758621050688,-151.0,0.00026,7]
[387186043,1758621050698,-151.0,0.00026,7]
[387186044,1758621050707,-151.0,0.00026,7]
[387186045,1758621050720,-151.0,0.00026,7]
[387186046,1758621050730,-151.0,0.00026,7]
[387186047,1758621050739,-151.0,0.00026,7]
[387186048,1758621050748,-151.0,0.00026,7]
[387186049,1758621050758,-151.0,0.00026,7]
[387186050,1758621050767,-340.519285,0.00026,7]
[387186051,1758621050776,-340.519285,0.00026,7]
[387186052,1758621050786,-340.519285,0.00026,7]
[387186053,1758621050795,-340.519285,0.00026,7]
[387186054,1758621050804,-183.932224,0.00026,7]
[387186055,1758621050814,-183.932224,0.00026,7]
[387186056,1758621050823,-183.932224,0.00026,7]
[387186057,1758621050832,-236.106411,0.00026,7]
[387186058,1758621050842,-183.932224,0.00026,7]
[387186059,1758621050851,-26674.4505912,0.00026005,2]
[387186060,1758621050860,-377.0,0.00026015,2]
[387186061,1758621050869,-1000.0,0.00026021,2]
[387186062,1758621050879,-400.66233126,0.00026027,2]
[387186063,1758621050888,-400.0,0.00026027,2]
[387186064,1758621050897,-400.0,0.00026027,2]
[387186065,1758621050906,-1000.0,0.00026027,2]
[387186066,1758621050915,-1000.0,0.00026027,2]
[387186067,1758621050924,-835.61917104,0.00026027,2]
[387186068,1758621050934,-150.0,0.00026066,2]
[387186069,1758621050946,-500.0,0.00026066,2]
[387186070,1758621050955,-910.0,0.00026066,2]
[387186071,1758621050966,-424.0,0.00026066,2]
[387186072,1758621050976,-250.0,0.00026066,2]
[387186073,1758621050986,-250.0,0.00026066,2]
[387186074,1758621050995,-250.0,0.00026066,2]
[387186075,1758621051005,-150.0,0.00026066,2]
[387186076,1758621051014,-240.54874685,0.00026082,2]
[387186077,1758621051026,-163.12,0.00026085,2]
[387186078,1758621051036,-200.0,0.000261,7]
[387186079,1758621051045,-38468.02,0.000261,7]
[387186080,1758621051055,-516.64379166,0.000261,7]
[387186081,1758621051064,-2819.0,0.00026184,2]
[387186082,1758621051074,-240.54874685,0.00026192,2]
[387186083,1758621051083,-12379.71693225,0.00026283,2]
[387186084,1758621051093,-150.0,0.00026289,2]
[387186085,1758621051103,-240.54874685,0.00026301,2]
[387186086,1758621051112,-26674.4505912,0.0002633,2]
[387186087,1758621051122,-150.0,0.0002634,2]
[387186088,1758621051131,-200.0,0.0002634,2]
[387186089,1758621051141,-910.0,0.0002634,2]
[387186090,1758621051151,-424.0,0.0002634,2]
[387186091,1758621051160,-150.0,0.0002634,2]
[387186092,1758621051169,-150.0,0.00026359,2]
[387186093,1758621051179,-5316.87793201,0.00026376,2]
[387186094,1758621051188,-600.0,0.00026377,2]
[387186095,1758621051198,-240.54874685,0.00026384,2]
[387186096,1758621051207,-152.28513584,0.00026388,2]
[387186097,1758621051219,-472.0,0.00026422,2]
[387186098,1758621051229,-303.43,0.00026446,2]
[387186099,1758621051238,-150.0,0.00026474,2]
[387186100,1758621051248,-150.0,0.00026474,2]
[387186101,1758621051262,-150.0,0.00026474,2]
[387186102,1758621051272,-271.3812032,0.00026479,2]
[387186103,1758621051282,-200.0,0.0002651,7]
[387186104,1758621051291,-1000.0,0.00026521,2]
[387186105,1758621051300,-1000.0,0.00026521,2]
[387186106,1758621051309,-1000.0,0.00026521,2]
[387186107,1758621051318,-1000.0,0.00026521,2]
[387186108,1758621051327,-1000.0,0.00026521,2]
[387186109,1758621051340,-167.88889972,0.00026521,2]
[387186110,1758621051350,-571.03054024,0.00026521,2]
[387186111,1758621051359,-500.55864335,0.00026521,2]
[387186112,1758621051368,-1000.0,0.00026521,2]
[387186113,1758621051378,-209.26347217,0.00026521,2]
[387186114,1758621051387,-501.80022648,0.00026521,2]
[387186115,1758621051397,-1003.0384679,0.00026521,2]
[387186116,1758621051406,-1000.0,0.00026521,2]
[387186117,1758621051416,-995.51676082,0.00026521,2]
[387186118,1758621051426,-1005.31521346,0.00026521,2]
[387186119,1758621051435,-505.51871786,0.00026521,2]